[Event "Czech Youth U14 Girls 2024"]
[Site "Kouty nad Desnou"]
[Date "2024.03.09"]
[Round "1.1"]
[White "Horkova, Tereza"]
[Black "Nguyen Nhat, Minh Thu"]
[Result "1-0"]
[ECO "B22"]
[WhiteElo "1845"]
[BlackElo "1563"]
[Annotator "NA RC"]
[PlyCount "78"]
[EventDate "2024.03.10"]
[EventType "swiss"]
[EventRounds "9"]
[EventCountry "CZE"]
[SourceTitle "playchess.com"]
[Source "ChessBase"]
[SourceQuality "1"]
[TimeControl "40/5400+30:1800+30"]

1. e4 c5 2. c3 d6 3. d4 cxd4 4. cxd4 Nf6 5. Nc3 e6 6. Nf3 Be7 7. Bd3 Nc6 8. O-O O-O 9. a3 a6 10. Qc2 e5 11. d5 Nb8 12. h3 a5 13. Be3 Bd7 14. Qb3 Qc8 15. Rac1 Bxh3 16. Nh2 Bd7 17. Nb5 a4 18. Qd1 Qd8 19. Nc7 Ra5 20. Bb6 Rc5 21. Bxc5 dxc5 22. Nb5 Bxb5 23. Bxb5 Qa5 24. Bxa4 Nxe4 25. Re1 Nd6 26. Rxe5 Bf6 27. Re2 b5 28. Bc2 Bxb2 29. Bxh7+ Kxh7 30. Qd3+ Kg8 31. Rxb2 Nd7 32. Nf3 Nc4 33. Rb3 Nd6 34. Ng5 Nf6 35. Rxc5 Qe1+ 36. Qf1 Qe5 37. Nf3 Qh5 38. Nh2 Nde4 39. Rh3 Qe5 1-0

[Event "Czech Youth U14 Girls 2024"]
[Site "Kouty nad Desnou"]
[Date "2024.03.09"]
[Round "1.2"]
[White "Krisicova, Neli"]
[Black "Slivova, Linda"]
[Result "0-1"]
[ECO "B01"]
[WhiteElo "1556"]
[BlackElo "1824"]
[Annotator "NA RC"]
[PlyCount "52"]
[EventDate "2024.03.10"]
[EventType "swiss"]
[EventRounds "9"]
[EventCountry "CZE"]
[SourceTitle "playchess.com"]
[Source "ChessBase"]
[SourceQuality "1"]
[TimeControl "40/5400+30:1800+30"]

1. e4 d5 2. exd5 Qxd5 3. Nc3 Qd6 4. Bc4 Nf6 5. Nf3 c6 6. O-O Bg4 7. h3 Bh5 8. Re1 e6 9. d3 Be7 10. Ne4 Nxe4 11. Rxe4 O-O 12. Bf4 Qd8 13. Qe2 Nd7 14. Bg3 Bf6 15. d4 Nb6 16. Bb3 Bg6 17. Re3 Nd5 18. Bxd5 cxd5 19. Ne5 Rc8 20. Nxg6 hxg6 21. Rd1 Rc4 22. Rb3 Qc8 23. c3 Qc6 24. Qd2 Be7 25. Qf4 a5 26. a4 Qxa4 0-1

[Event "Czech Youth U14 Girls 2024"]
[Site "Kouty nad Desnou"]
[Date "2024.03.09"]
[Round "1.3"]
[White "Kozusnikova, Daniela"]
[Black "Kavanova, Valentyna"]
[Result "1-0"]
[ECO "B22"]
[WhiteElo "1809"]
[BlackElo "1539"]
[Annotator "NA RC"]
[PlyCount "57"]
[EventDate "2024.03.10"]
[EventType "swiss"]
[EventRounds "9"]
[EventCountry "CZE"]
[SourceTitle "playchess.com"]
[Source "ChessBase"]
[SourceQuality "1"]
[TimeControl "40/5400+30:1800+30"]

1. e4 c5 2. c3 Nc6 3. d4 cxd4 4. cxd4 d6 5. Nc3 Nf6 6. h3 h5 7. Nf3 g6 8. Bc4 Bg7 9. O-O Bd7 10. e5 dxe5 11. dxe5 Nh7 12. Qe2 e6 13. Rd1 Qa5 14. Nb5 Rd8 15. Nd6+ Kf8 16. Nxb7 Qc7 17. Nxd8 Nxd8 18. b3 Bc6 19. Ba3+ Kg8 20. Rac1 Bxf3 21. Qxf3 Bxe5 22. Bxe6 Ng5 23. Qd3 Nc6 24. Qxg6+ Bg7 25. Rxc6 Nxe6 26. Qxe6 fxe6 27. Rxc7 Bf6 28. Bb2 Rh6 29. Rdd7 1-0

[Event "Czech Youth U14 Girls 2024"]
[Site "Kouty nad Desnou"]
[Date "2024.03.09"]
[Round "1.4"]
[White "Archlebova, Iva"]
[Black "Kammova, Katerina"]
[Result "1-0"]
[ECO "C15"]
[WhiteElo "1488"]
[BlackElo "1781"]
[Annotator "NA RC"]
[PlyCount "39"]
[EventDate "2024.03.10"]
[EventType "swiss"]
[EventRounds "9"]
[EventCountry "CZE"]
[SourceTitle "playchess.com"]
[Source "ChessBase"]
[SourceQuality "1"]
[TimeControl "40/5400+30:1800+30"]

1. e4 e6 2. Nc3 d5 3. d4 Bb4 4. Bd2 dxe4 5. d5 exd5 6. Nxd5 Bxd2+ 7. Qxd2 c6 8. Nc3 Qxd2+ 9. Kxd2 f5 10. Re1 Ne7 11. f3 exf3 12. Nxf3 b6 13. a4 Ba6 14. Nd4 Kf7 15. Kc1 Bc8 16. Bc4+ Kf6 17. Rhf1 Re8 18. g4 Na6 19. gxf5 Nc5 20. b4 1-0

[Event "Czech Youth U14 Girls 2024"]
[Site "Kouty nad Desnou"]
[Date "2024.03.09"]
[Round "1.5"]
[White "Nova, Doubravka Anezka"]
[Black "Vaclavkova, Klara"]
[Result "1-0"]
[ECO "C55"]
[WhiteElo "1718"]
[BlackElo "1486"]
[Annotator "NA RC"]
[PlyCount "47"]
[EventDate "2024.03.10"]
[EventType "swiss"]
[EventRounds "9"]
[EventCountry "CZE"]
[SourceTitle "playchess.com"]
[Source "ChessBase"]
[SourceQuality "1"]
[TimeControl "40/5400+30:1800+30"]

1. e4 e5 2. Nf3 Nc6 3. d4 exd4 4. Bc4 Nf6 5. e5 d5 6. Bb5 Ne4 7. Nxd4 Bd7 8. Bxc6 bxc6 9. O-O Bc5 10. c3 O-O 11. Nd2 Nxd2 12. Bxd2 Rb8 13. b4 Bb6 14. Nb3 f6 15. a4 a6 16. a5 Ba7 17. Qe2 Qe7 18. Qxa6 Ra8 19. Qe2 fxe5 20. Be3 Bxe3 21. Qxe3 Rf4 22. Nc5 Bf5 23. Rfe1 e4 24. Qxf4 1-0

[Event "Czech Youth U14 Girls 2024"]
[Site "Kouty nad Desnou"]
[Date "2024.03.09"]
[Round "1.6"]
[White "Sochorova, Valentyna"]
[Black "Barteckova, Valerie"]
[Result "0-1"]
[ECO "B13"]
[WhiteElo "1485"]
[BlackElo "1687"]
[Annotator "NA RC"]
[PlyCount "76"]
[EventDate "2024.03.10"]
[EventType "swiss"]
[EventRounds "9"]
[EventCountry "CZE"]
[SourceTitle "playchess.com"]
[Source "ChessBase"]
[SourceQuality "1"]
[TimeControl "40/5400+30:1800+30"]

1. e4 c6 2. d4 d5 3. exd5 cxd5 4. c4 Nf6 5. Nc3 Nc6 6. a3 Be6 7. cxd5 Nxd5 8. Nf3 g6 9. Bd3 Bg7 10. Bb1 Nb6 11. Be3 O-O 12. h3 Rc8 13. O-O Na5 14. Ba2 Nac4 15. Qe2 Nd5 16. Ng5 Nxc3 17. bxc3 Bd5 18. a4 Qa5 19. Rfc1 Nxe3 20. Qxe3 Bxa2 21. Rxa2 Bh6 22. f4 Qd5 23. Raa1 Rc7 24. Qg3 Rfc8 25. Ra3 Qd6 26. Rb3 f6 27. Qh4 fxg5 28. Qxh6 Qxf4 29. Rf1 Qe3+ 30. Kh2 Qe6 31. Ra3 Qd6+ 32. Kh1 Qxa3 33. Qxg5 Qd6 34. Qc1 Rxc3 35. Qb2 Qxd4 36. Qa2+ Qc4 37. Qf2 Qxf1+ 38. Qxf1 Rc1 0-1

[Event "Czech Youth U14 Girls 2024"]
[Site "Kouty nad Desnou"]
[Date "2024.03.09"]
[Round "1.7"]
[White "Hladka, Leontyna"]
[Black "Peskova, Sara"]
[Result "1-0"]
[ECO "C68"]
[WhiteElo "1683"]
[BlackElo "1481"]
[Annotator "NA RC"]
[PlyCount "101"]
[EventDate "2024.03.10"]
[EventType "swiss"]
[EventRounds "9"]
[EventCountry "CZE"]
[SourceTitle "playchess.com"]
[Source "ChessBase"]
[SourceQuality "1"]
[TimeControl "40/5400+30:1800+30"]

1. e4 e5 2. Nf3 Nc6 3. Bb5 a6 4. Bxc6 dxc6 5. O-O Bd6 6. d4 Bg4 7. dxe5 Bxf3 8. Qxf3 Bxe5 9. Rd1 Qf6 10. Qxf6 Nxf6 11. f4 Ke7 12. fxe5 Nxe4 13. Re1 Rad8 14. Nc3 Nd2 15. Rd1 Nc4 16. Bg5+ f6 17. exf6+ Kf7 18. Rxd8 Rxd8 19. fxg7 Rd7 20. Re1 Kxg7 21. Re7+ Rxe7 22. Bxe7 Nxb2 23. Ne4 Nc4 24. Kf2 Kf7 25. Bd8 Nd6 26. Ng5+ Kg6 27. Bxc7 Nb5 28. Bf4 a5 29. Nf3 c5 30. Ne5+ Kf5 31. Ke3 Nc3 32. g4+ Ke6 33. a3 Nb1 34. Nc4 a4 35. Nb6 Nxa3 36. Nxa4 Kd5 37. Kd3 b5 38. Nc3+ Kc6 39. Bc1 Nc4 40. h4 Ne5+ 41. Ke4 Nxg4 42. Kf4 Nf6 43. Kg5 Ng8 44. Ne4 Kd5 45. Nf6+ Nxf6 46. Kxf6 Kd6 47. h5 c4 48. Ba3+ Kd7 49. Kg7 h6 50. Kxh6 Ke8 51. Kg7 1-0

[Event "Czech Youth U14 Girls 2024"]
[Site "Kouty nad Desnou"]
[Date "2024.03.09"]
[Round "1.8"]
[White "Kratka, Tereza"]
[Black "Bartova, Hana"]
[Result "0-1"]
[ECO "A10"]
[WhiteElo "1477"]
[BlackElo "1667"]
[Annotator "NA RC"]
[PlyCount "78"]
[EventDate "2024.03.10"]
[EventType "swiss"]
[EventRounds "9"]
[EventCountry "CZE"]
[SourceTitle "playchess.com"]
[Source "ChessBase"]
[SourceQuality "1"]
[TimeControl "40/5400+30:1800+30"]

1. c4 g6 2. d4 Bg7 3. Nf3 d6 4. e3 Nd7 5. Nc3 c5 6. Be2 Ngf6 7. O-O O-O 8. a3 cxd4 9. exd4 b6 10. Bf4 Bb7 11. Qd2 Rc8 12. b3 d5 13. Rac1 dxc4 14. bxc4 Re8 15. Rfe1 Nf8 16. Qd3 Ne6 17. Be3 Ng4 18. h3 Nxe3 19. fxe3 Qd6 20. Nb5 Qb8 21. a4 Red8 22. Rb1 Nc5 23. Qa3 Ne4 24. Nc3 Qg3 25. Nxe4 Bxe4 26. Rbc1 Bxf3 27. Bxf3 Rxc4 28. Qxe7 Rdc8 29. Qa3 Bh6 30. Rcd1 Rc3 31. Qe7 Bg5 32. Qe4 Kf8 33. Qg4 Qxg4 34. Bxg4 R8c4 35. Kf2 Rxa4 36. d5 Ke7 37. d6+ Kd8 38. d7 Raa3 39. e4 Bh4+ 0-1

[Event "Czech Youth U14 Girls 2024"]
[Site "Kouty nad Desnou"]
[Date "2024.03.09"]
[Round "1.9"]
[White "Kubatova, Beta"]
[Black "Martinkovicova, Nela"]
[Result "1-0"]
[ECO "D31"]
[WhiteElo "1666"]
[BlackElo "1476"]
[Annotator "NA RC"]
[PlyCount "59"]
[EventDate "2024.03.10"]
[EventType "swiss"]
[EventRounds "9"]
[EventCountry "CZE"]
[SourceTitle "playchess.com"]
[Source "ChessBase"]
[SourceQuality "1"]
[TimeControl "40/5400+30:1800+30"]

1. d4 d5 2. c4 e6 3. Nc3 Nc6 4. Nf3 Nf6 5. Bg5 Be7 6. e3 b6 7. Bd3 Bb7 8. O-O Qd7 9. a3 O-O 10. b4 a6 11. Qe2 Rfc8 12. Rfc1 a5 13. b5 Na7 14. a4 h6 15. Bh4 Re8 16. Ne5 Qd8 17. Qc2 g6 18. Bxg6 Rf8 19. Bxf7+ Rxf7 20. Nxf7 Kxf7 21. Bxf6 Bxf6 22. cxd5 Bxd5 23. Nxd5 exd5 24. Qxc7+ Qxc7 25. Rxc7+ Kg6 26. Rd7 Rc8 27. Rxa7 Bg7 28. Rb7 Ra8 29. Rxb6+ Kh7 30. Ra6 1-0

[Event "Czech Youth U14 Girls 2024"]
[Site "Kouty nad Desnou"]
[Date "2024.03.09"]
[Round "1.10"]
[White "Pruskova, Justyna"]
[Black "Bouchalova, Kveta"]
[Result "0-1"]
[ECO "C55"]
[WhiteElo "1471"]
[BlackElo "1627"]
[Annotator "NA RC"]
[PlyCount "82"]
[EventDate "2024.03.10"]
[EventType "swiss"]
[EventRounds "9"]
[EventCountry "CZE"]
[SourceTitle "playchess.com"]
[Source "ChessBase"]
[SourceQuality "1"]
[TimeControl "40/5400+30:1800+30"]

1. e4 e5 2. Nf3 Nc6 3. Bc4 Nf6 4. d4 exd4 5. e5 Ne4 6. Bd5 Bb4+ 7. Bd2 Nxd2 8. Nbxd2 O-O 9. O-O Qe7 10. Re1 Qc5 11. Bb3 Na5 12. a3 Bxd2 13. Nxd2 Qe7 14. Nc4 Nxb3 15. cxb3 Qc5 16. Rc1 Qd5 17. Qd3 Re8 18. Re4 c5 19. Rce1 b6 20. Nd6 Re6 21. Qf3 f6 22. R1e2 Ba6 23. Re1 Rf8 24. Qh5 Bd3 25. Rf4 Bg6 26. Qf3 Qxd6 27. Re2 Rxe5 28. Rxe5 Qxe5 29. h3 d3 30. Rc4 d2 31. Qd1 Qe1+ 32. Qxe1 dxe1=Q+ 33. Kh2 Qe5+ 34. g3 Qxb2 35. Rf4 Re8 36. h4 Re2 37. Kh3 Rxf2 38. Rxf2 Qxf2 39. g4 Be4 40. h5 Qg2+ 41. Kh4 Qh2# 0-1

[Event "Czech Youth U14 Girls 2024"]
[Site "Kouty nad Desnou"]
[Date "2024.03.09"]
[Round "1.11"]
[White "Mojzisova, Barbora"]
[Black "Myronova, Sofia"]
[Result "1-0"]
[ECO "B32"]
[WhiteElo "1623"]
[BlackElo "1456"]
[Annotator "NA RC"]
[PlyCount "181"]
[EventDate "2024.03.10"]
[EventType "swiss"]
[EventRounds "9"]
[EventCountry "CZE"]
[SourceTitle "playchess.com"]
[Source "ChessBase"]
[SourceQuality "1"]
[TimeControl "40/5400+30:1800+30"]

1. e4 c5 2. Nf3 Nc6 3. d4 cxd4 4. Nxd4 d6 5. Nc3 Bd7 6. Be3 Nf6 7. Bb5 g6 8. O-O Bg7 9. h3 O-O 10. Nxc6 Bxc6 11. Bxc6 bxc6 12. Qd2 Qd7 13. Bh6 Qe6 14. Bxg7 Kxg7 15. Rfe1 Qe5 16. Rab1 Qh5 17. Qe3 Qh4 18. e5 dxe5 19. Qxe5 Rfe8 20. Qc5 e6 21. Qxc6 Qg5 22. Qf3 Qf5 23. Qxf5 exf5 24. Kf1 Kf8 25. Rxe8+ Rxe8 26. Re1 Rd8 27. Rd1 Re8 28. Rd6 Ne4 29. Nxe4 fxe4 30. Rd7 Rb8 31. b3 a5 32. Rd4 f5 33. Ke2 Ke7 34. Rd5 Ra8 35. a4 Ke6 36. Rc5 Kd6 37. Rc4 Rb8 38. Ke3 Rf8 39. Kd4 Rd8 40. Rc5 Ke6+ 41. Ke3 Ra8 42. c4 Rd8 43. Rb5 Rd3+ 44. Ke2 Kd6 45. Rb6+ Kc7 46. Rb5 Kc6 47. Rxa5 Rxb3 48. Ra7 f4 49. Rxh7 f3+ 50. gxf3 exf3+ 51. Kd2 Kc5 52. Rh4 Ra3 53. Rf4 Rxa4 54. Rxf3 Rxc4 55. Rg3 Rh4 56. Ke3 Kd5 57. Rg5+ Ke6 58. Rxg6+ Kf5 59. Rg3 Re4+ 60. Kf3 Rf4+ 61. Kg2 Rh4 62. Rc3 Kf4 63. Rc4+ Kg5 64. Rxh4 Kxh4 65. f4 Kh5 66. Kg3 Kg6 67. Kg4 Kf6 68. f5 Kf7 69. Kg5 Kg7 70. f6+ Kf7 71. h4 Kg8 72. Kg6 Kh8 73. Kf7 Kh7 74. Ke7 Kg6 75. f7 Kf5 76. f8=Q+ Ke5 77. Qf6+ Kd5 78. Qd6+ Ke4 79. Qc5 Kd3 80. Qb4 Ke3 81. Qc4 Kf3 82. Kf6 Ke3 83. Kf5 Kf3 84. Qf4+ Ke2 85. Qg3 Kd2 86. Ke4 Kc2 87. Kd4 Kb2 88. Qc3+ Ka2 89. Qb4 Ka1 90. Kc3 Ka2 91. Qb2# 1-0

[Event "Czech Youth U14 Girls 2024"]
[Site "Kouty nad Desnou"]
[Date "2024.03.09"]
[Round "1.12"]
[White "Archlebova, Eva"]
[Black "Barteckova, Nikol"]
[Result "0-1"]
[ECO "B23"]
[WhiteElo "1438"]
[BlackElo "1612"]
[Annotator "NA RC"]
[PlyCount "66"]
[EventDate "2024.03.10"]
[EventType "swiss"]
[EventRounds "9"]
[EventCountry "CZE"]
[SourceTitle "playchess.com"]
[Source "ChessBase"]
[SourceQuality "1"]
[TimeControl "40/5400+30:1800+30"]

1. e4 c5 2. Nc3 e6 3. Bc4 a6 4. a4 Nc6 5. Nf3 d6 6. d3 Nf6 7. Be3 Be7 8. h3 d5 9. exd5 exd5 10. Bxd5 Nxd5 11. Qd2 Be6 12. Ne4 Nxe3 13. Qxe3 Nd4 14. Rc1 O-O 15. Nxd4 cxd4 16. Qf3 Bd5 17. O-O Rc8 18. Rfe1 Bg5 19. Rcd1 Rxc2 20. Re2 Rxe2 21. Qxe2 Re8 22. Qg4 Bxe4 23. dxe4 d3 24. f3 d2 25. Kf1 Qd3+ 26. Kf2 Be3+ 27. Kg3 Qe2 28. Rxd2 Qxd2 29. h4 Bf2+ 30. Kh3 Qe1 31. Qd7 Qh1+ 32. Kg4 Qxh4+ 33. Kf5 g6# 0-1

[Event "Czech Youth U14 Girls 2024"]
[Site "Kouty nad Desnou"]
[Date "2024.03.09"]
[Round "1.13"]
[White "Kubatova, Ema"]
[Black "Spetlova, Stella"]
[Result "1-0"]
[ECO "D10"]
[WhiteElo "1580"]
[BlackElo "1405"]
[Annotator "NA RC"]
[PlyCount "77"]
[EventDate "2024.03.10"]
[EventType "swiss"]
[EventRounds "9"]
[EventCountry "CZE"]
[SourceTitle "playchess.com"]
[Source "ChessBase"]
[SourceQuality "1"]
[TimeControl "40/5400+30:1800+30"]

1. d4 c6 2. c4 d5 3. Nc3 dxc4 4. e4 Nd7 5. Bxc4 Nb6 6. Bb3 Nf6 7. h3 Qc7 8. Nf3 e6 9. Bg5 Be7 10. O-O O-O 11. Qe2 Nbd7 12. e5 Kh8 13. exf6 gxf6 14. Bh4 Rg8 15. Rac1 Qd8 16. Bg3 Qf8 17. Rfe1 Qg7 18. d5 cxd5 19. Nxd5 Bd6 20. Qf1 Bxg3 21. fxg3 exd5 22. Bxd5 Nb6 23. Be4 Qxg3 24. Nh2 Rb8 25. Qxf6+ Rg7 26. Bf3 Bxh3 27. Re2 Kg8 28. Rce1 Be6 29. Bxb7 Qd6 30. Bf3 Rg6 31. Qc3 Rc8 32. Qe5 Qe7 33. Bg4 Nd7 34. Qd4 Nf8 35. Bf5 Rf6 36. Ng4 Nd7 37. Nxf6+ Nxf6 38. Bxe6 fxe6 39. Rxe6 1-0

[Event "Czech Youth U14 Girls 2024"]
[Site "Kouty nad Desnou"]
[Date "2024.03.10"]
[Round "2.1"]
[White "Kubatova, Beta"]
[Black "Horkova, Tereza"]
[Result "0-1"]
[ECO "D45"]
[WhiteElo "1666"]
[BlackElo "1845"]
[Annotator "NA RC"]
[PlyCount "82"]
[EventDate "2024.03.10"]
[EventType "swiss"]
[EventCountry "CZE"]
[SourceTitle "playchess.com"]
[Source "ChessBase"]
[SourceQuality "1"]
[TimeControl "40/5400+30:1800+30"]

1. d4 {[%emt 0:00:04]} d5 {[%emt 0:00:12]} 2. c4 {[%emt 0:00:08]} c6 {[%emt 0:00:09]} 3. Nc3 {[%emt 0:00:12]} e6 {[%emt 0:00:15]} 4. e3 {[%emt 0:01:22]} Nf6 {[%emt 0:00:22]} 5. Nf3 {[%emt 0:00:37]} Nbd7 {[%emt 0:00:32]} 6. Qc2 {[%emt 0:00:45]} Be7 {[%emt 0:06:27]} 7. b3 {[%emt 0:01:56]} O-O {[%emt 0:01:08]} 8. Bb2 {[%emt 0:01:22]} b6 {[%emt 0:04:15]} 9. Be2 {[%emt 0:01:40]} Bb7 {[%emt 0:00:32]} 10. O-O {[%emt 0:01:34]} Rc8 {[%emt 0:01:19]} 11. Rad1 {[%emt 0:05:17]} Qc7 {[%emt 0:01:51]} 12. Rfe1 {[%emt 0:06:06]} Rfd8 {[%emt 0:04:11]} 13. h3 {[%emt 0:02:16]} Bd6 {[%emt 0:03:18]} 14. e4 {[%emt 0:13:00]} dxe4 {[%emt 0:01:08]} 15. Nxe4 {[%emt 0:00:29]} Nxe4 {[%emt 0:01:55]} 16. Qxe4 {[%emt 0:00:37]} Nf6 {[%emt 0:01:46]} 17. Qb1 {[%emt 0:06:15]} Bb4 {[%emt 0:07:29]} 18. Rf1 {[%emt 0:01:40]} Qe7 {[%emt 0:04:05]} 19. Qc2 {[%emt 0:07:39]} h6 {[%emt 0:09:03]} 20. a3 {[%emt 0:02:24]} Bd6 {[%emt 0:04:27]} 21. b4 {[%emt 0:14:22]} Nh5 {[%emt 0:07:01]} 22. Nd2 {[%emt 0:09:20]} Nf4 {[%emt 0:02:00]} 23. Ne4 {[%emt 0:01:24]} Bb8 {[%emt 0:04:26]} 24. Bf3 {[%emt 0:06:49]} h5 {[%emt 0:03:29]} 25. Bc1 {[%emt 0:02:51]} Qc7 {[%emt 0:03:31]} 26. g3 {[%emt 0:05:05]} Nxh3+ {[%emt 0:04:04]} 27. Kg2 {[%emt 0:00:53]} f5 {[%emt 0:00:32]} 28. Kxh3 {[%emt 0:02:50]} fxe4 {[%emt 0:03:08]} 29. Qxe4 {[%emt 0:01:04]} Qf7 {[%emt 0:00:54]} 30. Kg2 {[%emt 0:01:14]} Rd7 {[%emt 0:02:46]} 31. Rh1 {[%emt 0:01:47]} c5 {[%emt 0:00:56]} 32. d5 {[%emt 0:01:13]} exd5 {[%emt 0:00:43]} 33. cxd5 {[%emt 0:00:21]} Re8 {[%emt 0:03:14]} 34. Qc4 {[%emt 0:01:57]} cxb4 {[%emt 0:00:45]} 35. axb4 {[%emt 0:00:25]} g6 {[%emt 0:00:51]} 36. Be3 {[%emt 0:00:45]} Rf8 {[%emt 0:03:35]} 37. Qe2 {[%emt 0:00:40]} Ba6 {[%emt 0:01:30]} 38. Qxa6 {[%emt 0:00:24]} Qxf3+ {[%emt 0:00:02]} 39. Kh2 {[%emt 0:00:07]} h4 {[%emt 0:01:09]} 40. Rhg1 {[%emt 0:00:58]} hxg3+ {[%emt 0:00:26]} 41. Rxg3 {[%emt 0:30:34]} Rh7+ {[%emt 0:30:13]} 0-1

[Event "Czech Youth U14 Girls 2024"]
[Site "Kouty nad Desnou"]
[Date "2024.03.10"]
[Round "2.2"]
[White "Slivova, Linda"]
[Black "Mojzisova, Barbora"]
[Result "1-0"]
[ECO "B12"]
[WhiteElo "1824"]
[BlackElo "1623"]
[Annotator "NA RC"]
[PlyCount "119"]
[EventDate "2024.03.10"]
[EventType "swiss"]
[EventCountry "CZE"]
[SourceTitle "playchess.com"]
[Source "ChessBase"]
[SourceQuality "1"]
[TimeControl "40/5400+30:1800+30"]

1. e4 {[%emt 0:00:03]} c6 {[%emt 0:00:09]} 2. d4 {[%emt 0:01:25]} d5 {[%emt 0:00:08]} 3. e5 {[%emt 0:00:37]} c5 {[%emt 0:00:26]} 4. dxc5 {[%emt 0:03:18]} e6 {[%emt 0:00:09]} 5. Nf3 {[%emt 0:04:06]} Bxc5 {[%emt 0:01:23]} 6. Bd3 {[%emt 0:01:39]} f6 {[%emt 0:08:13]} 7. O-O {[%emt 0:04:45]} Nc6 {[%emt 0:05:47]} 8. Bf4 {[%emt 0:15:35]} g5 {[%emt 0:08:50]} 9. Bd2 {[%emt 0:19:23]} g4 {[%emt 0:04:29]} 10. Nh4 {[%emt 0:01:50]} f5 {[%emt 0:02:40]} 11. g3 {[%emt 0:01:35]} Qe7 {[%emt 0:09:34]} 12. Bf4 {[%emt 0:08:10]} Qg7 {[%emt 0:05:00]} 13. c3 {[%emt 0:06:07]} Nge7 {[%emt 0:04:43]} 14. b4 {[%emt 0:06:50]} Bb6 {[%emt 0:01:30]} 15. b5 {[%emt 0:09:57]} Nd8 {[%emt 0:04:28]} 16. Nd2 {[%emt 0:02:27]} Ng6 {[%emt 0:00:56]} 17. Nb3 {[%emt 0:01:13]} Nxf4 {[%emt 0:03:56]} 18. gxf4 {[%emt 0:00:07]} Qh6 {[%emt 0:12:50]} 19. Ng2 {[%emt 0:00:28]} Rg8 {[%emt 0:03:27]} 20. Nd4 {[%emt 0:01:32]} Rg6 {[%emt 0:01:50]} 21. Qd2 {[%emt 0:03:54]} Nf7 {[%emt 0:02:56]} 22. Qe3 {[%emt 0:01:23]} Qg7 {[%emt 0:00:53]} 23. Qg3 {[%emt 0:02:28]} Rh6 {[%emt 0:00:56]} 24. h4 {[%emt 0:01:58]} Bd8 {[%emt 0:03:11]} 25. Kh2 {[%emt 0:01:32]} Rh5 {[%emt 0:01:53]} 26. Rh1 {[%emt 0:00:29]} Qh6 {[%emt 0:00:45]} 27. Kg1 {[%emt 0:00:16]} Nh8 {[%emt 0:00:45]} 28. f3 {[%emt 0:00:28]} Ng6 {[%emt 0:03:47]} 29. fxg4 {[%emt 0:00:21]} Bxh4 {[%emt 0:01:02]} 30. Nxh4 {[%emt 0:00:38]} Rxh4 {[%emt 0:00:15]} 31. Rxh4 {[%emt 0:00:17]} Qxh4 {[%emt 0:00:11]} 32. Qxh4 {[%emt 0:00:09]} Nxh4 {[%emt 0:00:06]} 33. gxf5 {[%emt 0:00:25]} Nxf5 {[%emt 0:00:32]} 34. Nxf5 {[%emt 0:00:29]} exf5 {[%emt 0:00:07]} 35. Kf2 {[%emt 0:00:10]} Bd7 {[%emt 0:02:07]} 36. Ke3 {[%emt 0:00:58]} Ke7 {[%emt 0:00:35]} 37. Rh1 {[%emt 0:00:12]} Rh8 {[%emt 0:00:20]} 38. Rh6 {[%emt 0:00:12]} Be6 {[%emt 0:00:47]} 39. Kd4 {[%emt 0:01:02]} b6 {[%emt 0:00:45]} 40. Bc2 {[%emt 0:00:53]} Bd7 {[%emt 0:00:54]} 41. a4 {[%emt 0:30:36]} Kf7 {[%emt 0:30:28]} 42. Kxd5 {[%emt 0:00:00]} Kg7 {[%emt 0:00:00]} 43. Rd6 {[%emt 0:00:00]} Be8 {[%emt 0:00:00]} 44. Bxf5 {[%emt 0:00:00]} h5 {[%emt 0:00:00]} 45. Ke4 {[%emt 0:00:00]} h4 {[%emt 0:00:00]} 46. Bh3 {[%emt 0:00:00]} Bg6+ {[%emt 0:00:00]} 47. f5 {[%emt 0:00:00]} Bh5 {[%emt 0:00:00]} 48. Rd7+ {[%emt 0:00:00]} Kf8 {[%emt 0:00:00]} 49. e6 {[%emt 0:00:00]} Be8 {[%emt 0:00:00]} 50. Rxa7 {[%emt 0:00:00]} Rg8 {[%emt 0:00:00]} 51. Rh7 {[%emt 0:00:00]} Rg3 {[%emt 0:00:00]} 52. Rxh4 {[%emt 0:00:00]} Rxc3 {[%emt 0:00:00]} 53. Ke5 {[%emt 0:00:00]} Kg7 {[%emt 0:00:00]} 54. f6+ {[%emt 0:00:00]} Kg6 {[%emt 0:00:00]} 55. Bf5+ {[%emt 0:00:00]} Kg5 {[%emt 0:00:00]} 56. Rg4+ {[%emt 0:00:00]} Kh5 {[%emt 0:00:00]} 57. f7 {[%emt 0:00:00]} Rc5+ {[%emt 0:00:00]} 58. Kf6 {[%emt 0:00:00]} Bxf7 {[%emt 0:00:00]} 59. exf7 {[%emt 0:00:00]} Rd5 {[%emt 0:00:00]} 60. f8=R {[%emt 0:00:53]} 1-0

[Event "Czech Youth U14 Girls 2024"]
[Site "Kouty nad Desnou"]
[Date "2024.03.10"]
[Round "2.3"]
[White "Bouchalova, Kveta"]
[Black "Kozusnikova, Daniela"]
[Result "0-1"]
[ECO "C11"]
[WhiteElo "1627"]
[BlackElo "1809"]
[Annotator "NA RC"]
[PlyCount "56"]
[EventDate "2024.03.10"]
[EventType "swiss"]
[EventCountry "CZE"]
[SourceTitle "playchess.com"]
[Source "ChessBase"]
[SourceQuality "1"]
[TimeControl "40/5400+30:1800+30"]

1. e4 {[%emt 0:00:03]} e6 {[%emt 0:00:07]} 2. d4 {[%emt 0:00:06]} d5 {[%emt 0:00:06]} 3. Nc3 {[%emt 0:00:12]} Nf6 {[%emt 0:00:08]} 4. e5 {[%emt 0:06:03]} Nfd7 {[%emt 0:00:11]} 5. Nf3 {[%emt 0:13:23]} c5 {[%emt 0:00:47]} 6. Be3 {[%emt 0:07:06]} Nc6 {[%emt 0:01:28]} 7. Be2 {[%emt 0:11:40]} Be7 {[%emt 0:12:40]} 8. O-O {[%emt 0:02:26]} a6 {[%emt 0:02:08]} 9. a4 {[%emt 0:09:36]} Qb6 {[%emt 0:25:54]} 10. b3 {[%emt 0:22:38]} cxd4 {[%emt 0:03:10]} 11. Nxd4 {[%emt 0:01:44]} Nxd4 {[%emt 0:14:38]} 12. Bxd4 {[%emt 0:01:11]} Bc5 {[%emt 0:00:39]} 13. a5 {[%emt 0:03:19]} Qa7 {[%emt 0:07:12]} 14. Bxc5 {[%emt 0:01:56]} Qxc5 {[%emt 0:00:10]} 15. Na4 {[%emt 0:00:52]} Qxa5 {[%emt 0:02:00]} 16. Qd4 {[%emt 0:00:26]} O-O {[%emt 0:01:04]} 17. Bd3 {[%emt 0:00:49]} Qc7 {[%emt 0:01:11]} 18. Rae1 {[%emt 0:00:58]} b5 {[%emt 0:01:03]} 19. Re3 {[%emt 0:02:35]} bxa4 {[%emt 0:06:10]} 20. Qh4 {[%emt 0:12:27]} h6 {[%emt 0:01:37]} 21. Rg3 {[%emt 0:00:37]} Nxe5 {[%emt 0:04:16]} 22. Qxh6 {[%emt 0:00:37]} f5 {[%emt 0:01:26]} 23. Qh5 {[%emt 0:00:43]} Nxd3 {[%emt 0:00:28]} 24. cxd3 {[%emt 0:00:27]} Qf7 {[%emt 0:00:44]} 25. Qh4 {[%emt 0:00:31]} Qf6 {[%emt 0:00:50]} 26. Qh5 {[%emt 0:00:17]} axb3 {[%emt 0:01:01]} 27. Qd1 {[%emt 0:00:46]} b2 {[%emt 0:01:23]} 28. Qb1 {[%emt 0:00:29]} Bd7 {[%emt 0:00:26]} 0-1